[Event "Charlotte Open 2024"]
[Site "Charlotte"]
[Date "2024.01.16"]
[Round "6.2"]
[White "Zhou, Jianchao"]
[Black "Kantor, Gergely"]
[Result "1/2-1/2"]
[ECO "A28"]
[WhiteElo "2562"]
[BlackElo "2531"]
[Annotator "TA"]
[PlyCount "72"]
[EventDate "2024.01.05"]
[EventType "swiss"]
[EventCountry "USA"]
[SourceTitle "playchess.com"]
[Source "ChessBase"]
[SourceQuality "1"]
[TimeControl "6600+10"]

{[%evp 10,72,0,-5,0,-8,0,0,0,0,0,0,0,0,0,-20,0,0,-5,-18,-9,-16,27,0,0,7,14,10,14,0,0,0,0,0,0,0,17,0,21,0,0,-4,-9,-5,-15,-24,-20,-16,-22,-27,-24,-15,-23,-18,-18,-19,-9,-12,-4,-17,0,0,0,0,0]} 1. c4 {[%emt 0:00:10]} e5 {[%emt 0:03:08]} 2. Nc3 {[%emt 0:01:09]} Nf6 {[%emt 0:00:11]} 3. Nf3 {[%emt 0:00:06]} Nc6 {[%emt 0:00:14]} 4. d3 {[%emt 0:00:07]} d5 {[%emt 0:01:42]} 5. cxd5 {[%emt 0:00:03]} Nxd5 {[%emt 0:00:03]} 6. e4 {[%emt 0:00:36]} Nf6 {[%emt 0:00:07][%cal Bd5f6,Bf6h5,Bh5f4][%mdl 32] A28: English Opening: Four Knights Variation.} 7. h3 {[%emt 0:00:43]} g6 {[%emt 0:04:02]} 8. Be3 {[%emt 0:03:04]} Bg7 {[%emt 0:00:24]} 9. Be2 {[%emt 0:11:05]} O-O {[%emt 0:00:51] [#]} 10. Rc1 $146 {[%emt 0:03:11]} ({Predecessor:} 10. O-O Nh5 11. Qd2 Nd4 12. Bd1 f5 13. Bg5 Qd6 14. Nxd4 exd4 15. Nd5 Rf7 16. Nf4 Nxf4 17. Bxf4 {1-0 Sadhwani,R (2545)-Neelotpal,D (2425) BAN-chT Premier 2021 (5.4)}) 10... Nh5 {[%emt 0:07:44]} 11. Bg5 {[%emt 0:03:32]} Qd6 {[%emt 0:05:09]} 12. O-O {[%emt 0:18:58]} h6 {[%emt 0:13:52]} 13. Be3 {[%emt 0:08:20]} Nf4 {[%emt 0:10:38]} 14. Nd5 {[%emt 0:00:36]} Ne6 {[%emt 0:04:28] Against Bc5} (14... Nxd5 15. Bc5 Qe6 16. Bxf8 (16. exd5 Qxd5 17. Bxf8 Kxf8 $14) 16... Kxf8 17. exd5 Qxd5 18. Nd2 $14) 15. Qc2 {[%emt 0:01:09]} f5 {[%emt 0:06:47]} 16. Bc5 {[%emt 0:02:36]} Nxc5 {[%emt 0:01:24]} 17. Qxc5 {[%emt 0:00:04]} Rf7 {[%emt 0:02:28]} 18. Qxd6 {[%emt 0:03:40]} cxd6 {[%emt 0:00:07]} 19. Bd1 {[%emt 0:00:20]} Be6 {[%emt 0:06:33]} 20. Bb3 {[%emt 0:00:53]} Rd8 {[%emt 0:01:30]} 21. a3 {[%emt 0:06:13]} Kh7 {[%emt 0:04:04]} 22. Rc3 {[%emt 0:04:44]} Nb8 {[%emt 0:08:52][%cal Bc6b8,Bb8d7,Bd7f6][%mdl 32]} 23. Nd2 {[%emt 0:04:18]} Nd7 {[%emt 0:05:31]} 24. Ne3 {[%emt 0:03:38] A dynamic duo of knights.} Bxb3 {[%emt 0:00:14]} 25. Nxb3 {[%emt 0:02:04]} Nf6 {[%emt 0:01:04]} 26. exf5 {[%emt 0:11:01]} gxf5 {[%emt 0:00:20][%cal Bg6f5,Bf5f4][%mdl 32]} 27. d4 {[%emt 0:00:31]} ({But not} 27. Nxf5 Nd5 28. g4 Nxc3 29. bxc3 h5 $17) 27... f4 {[%emt 0:03:59]} 28. dxe5 $1 {[%emt 0:01:05]} dxe5 {[%emt 0:00:47]} 29. Rd1 {[%emt 0:01:17]} Rxd1+ {[%emt 0:01:47]} 30. Nxd1 {[%emt 0:00:01]} Rd7 {[%emt 0:00:09]} 31. Rc1 {[%emt 0:00:12]} Ne4 {[%emt 0:01:45] The position is equal.} 32. Kf1 {[%emt 0:05:14]} Rd3 {[%emt 0:01:00]} 33. Nc3 {[%emt 0:07:18]} Nxc3 34. Rxc3 {[%emt 0:00:01]} Rd1+ {[%emt 0:07:40]} 35. Ke2 {[%emt 0:00:02]} Rb1 {[%emt 0:00:06]} 36. Rc2 {[%emt 0:01:09]} e4 {[%emt 0:00:24] An interesting draw.   Weighted Error Value: White=0.06 (flawless) /Black=0.06 (flawless)} 1/2-1/2

[Event "Charlotte Open 2024"]
[Site "Charlotte"]
[Date "2024.01.15"]
[Round "6.3"]
[White "Cordova, Emilio"]
[Black "Prabhu, Naveen"]
[Result "1-0"]
[ECO "A11"]
[WhiteElo "2563"]
[BlackElo "2103"]
[Annotator "TA"]
[PlyCount "63"]
[EventDate "2024.01.05"]
[EventType "swiss"]
[EventCountry "USA"]
[SourceTitle "playchess.com"]
[Source "ChessBase"]
[SourceQuality "1"]
[TimeControl "6600+10"]

{[%evp 10,63,27,29,29,18,29,4,19,11,52,28,74,76,88,67,75,72,152,118,112,122,110,112,114,110,118,125,97,144,165,168,175,151,165,156,155,164,144,140,225,210,211,229,219,224,226,219,211,206,383,380,494,502,1300,1244]} 1. Nf3 {[%emt 0:06:08]} d5 {[%emt 0:00:12]} 2. g3 {[%emt 0:00:28]} Nf6 {[%emt 0:00:15]} 3. Bg2 {[%emt 0:00:06]} Bf5 {[%emt 0:00:10]} 4. c4 {[%emt 0:00:53]} c6 {[%emt 0:00:13]} 5. Qb3 {[%emt 0:00:33]} Qb6 {[%emt 0:02:18]} 6. d3 {[%emt 0:00:19]} e6 {[%emt 0:01:58] A11: English Opening: 1...c6.} 7. Be3 {[%emt 0:01:00]} Qb4+ {[%emt 0:03:45]} 8. Bd2 {[%emt 0:06:12]} Qxb3 {[%emt 0:05:15] The position is equal.} 9. axb3 {[%emt 0:00:25][%cal Ba2b3,Bb3b4][%mdl 32]} Na6 {[%emt 0:00:16]} 10. O-O {[%emt 0:07:15] [#]} Bc5 $146 {[%emt 0:08:16] Dodges Nd4} (10... Bg4 $11 {is superior.}) ({Predecessor:} 10... Be7 11. Na3 Nc5 12. Nd4 Bg6 13. b4 Ncd7 14. f4 O-O 15. f5 exf5 16. Nxf5 Rfe8 17. Nc2 dxc4 18. dxc4 {1-0 Tejero Royo,F (2202)-Navarro Alvarez,A (2102) Catalunya-ch Seniors 31st 2015 (5)}) 11. Rc1 $16 {[%emt 0:01:40]} Nd7 {[%emt 0:03:56]} 12. Na3 {[%emt 0:16:59]} O-O {[%emt 0:03:07]} 13. Nc2 {[%emt 0:02:36]} Rfc8 {[%emt 0:04:36]} ({Black should play} 13... Bg4) 14. b4 {[%emt 0:01:23]} Be7 {[%emt 0:03:18]} 15. Nfd4 {[%emt 0:00:32] [#] Black must now prevent Nxf5.} dxc4 {[%emt 0:09:34]} 16. Nxf5 {[%emt 0:00:16]} exf5 {[%emt 0:00:06]} 17. dxc4 {[%emt 0:00:09]} Bf6 {[%emt 0:01:25]} 18. Bc3 {[%emt 0:00:48]} Bxc3 {[%emt 0:07:09]} 19. bxc3 {[%emt 0:00:15]} Nc7 {[%emt 0:01:54]} 20. Nd4 {[%emt 0:01:03]} g6 {[%emt 0:02:06]} 21. b5 {[%emt 0:00:54]} Nc5 {[%emt 0:06:20]} 22. bxc6 {[%emt 0:02:48]} b6 {[%emt 0:00:08]} 23. Rcb1 {[%emt 0:00:19] White is much more active.} Ne4 {[%emt 0:08:33]} 24. Rb3 {[%emt 0:00:17]} Ne8 {[%emt 0:07:43] [#]} (24... Kf8 $16 {might work better.} 25. g4 Nd6) 25. g4 $1 $18 {[%emt 0:06:58][%mdl 512]} Nd2 {[%emt 0:08:52]} (25... Nc5 26. Rba3) 26. Rb4 {[%emt 0:00:25]} a5 {[%emt 0:02:38]} 27. Rxb6 {[%emt 0:02:21][%cal Bb4b6,Bb6b7,Bb7d7][%mdl 32]} Nxc4 {[%emt 0:00:05] Black is weak on the light squares} 28. Rb7 {[%emt 0:00:04]} fxg4 {[%emt 0:01:36]} 29. Bd5 {[%emt 0:03:26][%csl LRc4,LRf7]} Ncd6 {[%emt 0:01:08]} (29... Ned6 30. Nb5 Kg7 31. Nxd6 Nxd6) 30. Rd7 {[%emt 0:00:45]} Rc7 {[%emt 0:01:01]} 31. c4 {[%emt 0:00:51]} Kg7 {[%emt 0:08:28]} (31... Raa7 $142 32. c5 Rxd7) 32. Ne6+ {[%emt 0:00:22] Weighted Error Value: White=0.04 (flawless) /Black=0.27 (precise)} 1-0

[Event "Charlotte Open 2024"]
[Site "Charlotte"]
[Date "2024.01.15"]
[Round "6.4"]
[White "Titus, Andrew"]
[Black "Sadorra, Julio Catalino"]
[Result "0-1"]
[ECO "B15"]
[WhiteElo "2202"]
[BlackElo "2554"]
[Annotator "TA"]
[PlyCount "56"]
[EventDate "2024.01.05"]
[EventType "swiss"]
[EventCountry "USA"]
[SourceTitle "playchess.com"]
[Source "ChessBase"]
[SourceQuality "1"]
[TimeControl "6600+10"]

{[%evp 14,56,46,31,40,53,37,46,39,44,43,45,43,-14,-16,-33,0,0,0,0,0,-37,-22,-41,-43,-127,-111,-150,-141,-149,-137,-228,-184,-498,-496,-423,-416,-789,-785,-843,-833,-1102,-968,-29995,-701]} 1. e4 {[%emt 0:02:40]} c6 {[%emt 0:05:00]} 2. d4 {[%emt 0:00:26]} d5 {[%emt 0:00:08]} 3. Nd2 {[%emt 0:00:03]} dxe4 {[%emt 0:00:14]} 4. Nxe4 {[%emt 0:00:05]} Nf6 {[%emt 0:00:20]} 5. Nxf6+ {[%emt 0:00:05]} exf6 {[%emt 0:00:04]} 6. c3 {[%emt 0:00:06]} Bd6 {[%emt 0:00:56]} 7. Bd3 {[%emt 0:00:35]} O-O {[%emt 0:00:07]} 8. Qc2 {[%emt 0:00:09]} Re8+ {[%emt 0:00:40] B15: Caro-Kann: 3 Nc3: 3...g6 and 3...dxe4 4 Nxe4 Nf6 5 Nxf6+ exf6.} 9. Ne2 {[%emt 0:00:12]} h5 {[%emt 0:00:15]} 10. O-O {[%emt 0:00:06]} h4 {[%emt 0:00:09] White is slightly better.} 11. h3 {[%emt 0:00:05]} Nd7 {[%emt 0:00:20][%cal Bb8d7,Bd7f8,Bf8e6,Be6d4][%mdl 32]} 12. c4 {[%emt 1:47:38]} Nf8 {[%emt 0:00:27] [#]} 13. f4 $146 {[%emt 0:00:00] [#]} (13. Be3 $14) ({Predecessor:} 13. Be3 Be6 14. Rad1 Rc8 15. Bf4 Ng6 16. Bxd6 Qxd6 17. Rfe1 Rcd8 18. d5 cxd5 19. Bxg6 fxg6 20. Qxg6 {0-1 Quparadze,G (2491)-Gukesh,D (2720) Wch Rapid Samarkand 2023 (13)}) 13... f5 $1 $11 {[%emt 0:03:49]} 14. Bd2 {[%emt 0:00:00]} (14. Rf3 g6) 14... Ne6 {[%emt 0:08:42][%cal Oe6d4]} 15. Bxf5 {[%emt 0:00:00]} Nxd4 $1 {[%emt 0:01:35][%mdl 64] Discovered Attack, Remove Defender} 16. Nxd4 {[%emt 0:00:00]} Bc5 $1 {[%emt 0:00:04]} 17. Bxc8 {[%emt 0:00:00]} Qxd4+ {[%emt 0:14:44]} (17... Rxc8 {simplifies} 18. Bc3 Bxd4+ 19. Kh1 c5) 18. Kh1 {[%emt 0:00:00]} Raxc8 {[%emt 0:00:04]} 19. Bc3 {[%emt 0:00:00]} (19. Rae1 $15) 19... Qxc4 $17 {[%emt 0:09:47]} 20. b3 {[%emt 0:00:00]} Qe4 {[%emt 0:02:08]} 21. Qd1 {[%emt 0:00:00]} Qf5 {[%emt 0:01:18] Wards off Qh5. Black is more active.} 22. Be5 {[%emt 0:00:00]} (22. Qg4 $17 Qxg4 23. hxg4) 22... f6 {[%emt 0:01:22]} 23. Qc1 $2 {[%emt 0:00:00]} (23. b4 {was the crucial defense.}) 23... Bb6 $19 {[%emt 0:01:13]} ({Weaker is} 23... fxe5 24. Qxc5 b6 25. Qc4+ Qe6 26. Qe4 $11) 24. Qc4+ {[%emt 0:00:00]} Kh7 {[%emt 0:01:02]} 25. Bc3 {[%emt 0:00:00]} (25. Rae1 $142 fxe5 26. fxe5) 25... Re3 {[%emt 0:01:01][%cal Oe3h3]} 26. Kh2 {[%emt 0:00:00]} Rce8 {[%emt 0:03:11][%cal Oe3h3]} 27. Bd2 {[%emt 0:00:00]} R8e4 {[%emt 0:02:40] ( -> ...Rxh3+)} 28. Qc1 {[%emt 0:00:00] [#]} Rxh3+ $3 {[%emt 0:00:28][%mdl 512] An entertaining game by Sadorra.   Weighted Error Value: White=1.04/Black=0.13 (very precise)} 0-1

[Event "Charlotte Open 2024"]
[Site "Charlotte"]
[Date "2024.01.16"]
[Round "6.5"]
[White "Foisor, Sabina-Francesca"]
[Black "Cruz, Cristhian"]
[Result "0-1"]
[ECO "E16"]
[WhiteElo "2200"]
[BlackElo "2498"]
[Annotator "TA"]
[PlyCount "142"]
[EventDate "2024.01.05"]
[EventType "swiss"]
[EventCountry "USA"]
[SourceTitle "playchess.com"]
[Source "ChessBase"]
[SourceQuality "1"]
[TimeControl "6600+10"]

{[%evp 13,142,19,15,10,13,2,28,9,0,3,8,0,0,-5,-8,-21,-20,-14,-16,-19,-28,-46,-45,-43,-46,-54,-50,-54,-37,-59,-45,-79,-33,-45,-33,-49,-19,-14,-9,-74,-56,-69,0,0,0,-19,-31,-31,-14,-14,0,0,0,-21,0,0,61,-47,0,-2,0,-3,-1,-8,-8,-8,-8,-16,-12,-9,-4,-4,-7,-7,-7,-7,0,-22,0,0,0,0,0,0,0,0,0,0,0,0,0,0,0,0,0,0,0,0,0,0,0,0,0,0,0,0,0,0,0,0,0,0,-2,-31,-31,-195,-195,-29963,-5716,-29972,-29973,-29973,-29971,-29973,-29974,-29977,-29978,-29979,-29974,-29972,-29971]} 1. d4 {[%emt 0:04:28]} e6 {[%emt 0:01:31]} 2. Nf3 {[%emt 0:00:37]} Nf6 {[%emt 0:00:28]} 3. c4 {[%emt 0:00:18]} Bb4+ {[%emt 0:01:25]} 4. Nbd2 {[%emt 0:01:06]} a5 {[%emt 0:00:19]} 5. g3 {[%emt 0:03:52]} b6 {[%emt 0:02:35]} 6. Bg2 {[%emt 0:00:58]} Bb7 {[%emt 0:00:19]} 7. O-O {[%emt 0:00:57]} O-O {[%emt 0:02:48]} 8. Qc2 {[%emt 0:03:30] E16: Queen's Indian: 4 g3 Bb7 5 Bg2 Bb4+.} d5 {[%emt 1:42:05]} 9. Rd1 {[%emt 0:05:00] [#]} Qe7 $146 {[%emt 0:00:00]} ({Predecessor:} 9... Be7 10. Ne5 c5 11. cxd5 exd5 12. Ndc4 cxd4 13. Rxd4 Bc5 14. Rd1 Qe7 15. Bg5 dxc4 16. Bxf6 Qxf6 17. Bxb7 Bxf2+ {0-1 Minko,V (2381)-Malakhatko,V (2542) Wch Rapid Riadh 2017 (11)}) 10. Nf1 {[%emt 0:12:14] White has an edge.} dxc4 {[%emt 0:00:00]} 11. a3 {[%emt 0:04:06]} Bd6 {[%emt 0:00:00]} 12. Bg5 {[%emt 0:05:17]} Nbd7 {[%emt 0:00:00]} 13. Qxc4 {[%emt 0:05:35]} h6 {[%emt 0:00:00]} 14. Bf4 {[%emt 0:02:09]} Bxf4 {[%emt 0:00:00]} 15. gxf4 {[%emt 0:00:01]} c5 {[%emt 0:00:00]} 16. Ng3 {[%emt 0:03:00]} Rac8 {[%emt 0:00:00]} 17. Ne5 {[%emt 0:07:03]} Bxg2 {[%emt 0:00:00]} 18. Kxg2 {[%emt 0:07:30]} Nd5 {[%emt 0:00:00]} 19. e3 {[%emt 0:16:04]} cxd4 {[%emt 0:00:00]} 20. Qxd4 {[%emt 0:00:12][%cal Og3f5]} Nc5 {[%emt 0:00:00] And now ...Nb3 would win.} 21. Rab1 {[%emt 0:00:15]} Rfd8 {[%emt 0:00:00]} 22. Kg1 {[%emt 0:02:50] [#]} Nb4 $1 {[%emt 0:00:00]} 23. Qc4 $15 {[%emt 0:01:36] [#]} Ncd3 {[%emt 0:00:00]} 24. Qe4 {[%emt 0:04:53][%cal Re5d3]} f5 {[%emt 0:00:00]} (24... Nxe5 {simplifies} 25. fxe5 Nd5 26. Rbc1 b5) 25. Qg2 {[%emt 0:05:28]} Nxe5 {[%emt 0:00:00]} 26. Rxd8+ {[%emt 0:03:54]} (26. axb4 $11 {remains equal.} Nc4 27. Rxd8+ Rxd8 28. bxa5) 26... Rxd8 {[%emt 0:00:00]} 27. axb4 {[%emt 0:01:04]} Ng4 {[%emt 0:00:00] Black is more active.} (27... Nd3 $15 28. bxa5 bxa5) 28. h3 {[%emt 0:01:04]} Nf6 {[%emt 0:00:00]} 29. Qc6 {[%emt 0:01:55]} axb4 {[%emt 0:00:00]} 30. Qxb6 {[%emt 0:00:12]} Kh7 {[%emt 0:00:00]} 31. Ra1 {[%emt 0:01:09]} Nd5 {[%emt 0:00:00]} 32. Qc6 {[%emt 0:00:24]} Rd6 {[%emt 0:00:00]} 33. Qa8 {[%emt 0:00:09]} Rd8 {[%emt 0:01:20]} 34. Qc6 {[%emt 0:00:18]} Qd6 {[%emt 0:02:00]} (34... Rd6 $11 35. Qc8 Rd8 36. Qc6) 35. Qc4 {[%emt 0:02:05]} (35. Ra6 $1 $14 Qxc6 36. Rxc6) 35... Qd7 {[%emt 0:00:27]} (35... Ne7 $1 $15) 36. Qd4 {[%emt 0:00:22]} Qf7 {[%emt 0:00:34]} 37. Kh2 {[%emt 0:00:39]} Qf6 {[%emt 0:00:10]} 38. Ne2 {[%emt 0:00:22]} Qxd4 {[%emt 0:00:14]} 39. Nxd4 {[%emt 0:00:13] [#]} Nxf4 $11 {[%emt 0:00:08][%mdl 4160] Endgame Deflection. KRN-KRN} 40. Ra7 {[%emt 0:01:02]} (40. Ra6 Nd3) 40... Rd6 {[%emt 0:00:07] With the idea ...Nd3.} 41. Re7 {[%emt 0:01:09]} Kg6 {[%emt 0:00:16]} 42. Nb5 $1 {[%emt 0:00:37]} Rb6 {[%emt 0:00:02]} 43. exf4 {[%emt 0:00:02] Nc7 would be deadly.} Rxb5 {[%emt 0:00:12]} 44. Rxe6+ {[%emt 0:00:01] KR-KR} Kf7 {[%emt 0:00:09]} 45. Ra6 {[%emt 0:00:24]} Rc5 {[%emt 0:00:08]} (45... Rd5 $5 {[%cal Rd5d2]}) 46. Rb6 {[%emt 0:00:03]} Rc4 {[%emt 0:00:18]} 47. Kg3 {[%emt 0:00:01]} Rd4 {[%emt 0:00:07]} 48. f3 {[%emt 0:00:35]} Ke7 {[%emt 0:00:12]} 49. b3 {[%emt 0:00:00]} Kf7 {[%emt 0:00:09]} 50. Rb5 {[%emt 0:00:13]} Ke6 {[%emt 0:00:07]} 51. Re5+ {[%emt 0:00:25]} Kf6 {[%emt 0:00:12] White must now prevent ...Rd3.} 52. Rb5 {[%emt 0:00:01]} g5 {[%emt 0:00:09]} 53. Rb6+ {[%emt 0:00:12]} Kg7 {[%emt 0:00:07]} 54. fxg5 {[%emt 0:00:08]} hxg5 {[%emt 0:00:02]} 55. Kf2 {[%emt 0:00:02]} Rd2+ {[%emt 0:00:19]} 56. Ke3 {[%emt 0:00:04]} Rh2 {[%emt 0:00:05]} 57. Rxb4 {[%emt 0:00:03]} Rxh3 {[%emt 0:00:04]} 58. Kf2 {[%emt 0:00:20]} Rh2+ {[%emt 0:00:13]} 59. Kg3 {[%emt 0:00:05]} Rd2 {[%emt 0:00:39]} 60. Rb8 {[%emt 0:00:18]} Rd3 {[%emt 0:00:00] aiming for ...g4.} 61. Kf2 {[%emt 0:00:01]} Kf6 {[%emt 0:00:00]} 62. b4 {[%emt 0:00:06]} Rb3 {[%emt 0:00:10]} 63. b5 {[%emt 0:00:01]} Ke5 {[%emt 0:00:08] ...Kf4 is the strong threat.} 64. Kg3 $2 {[%emt 0:00:24] [#] Loses the game.} (64. Ra8 $15) 64... g4 $1 $19 {[%emt 0:00:12][%cal Bg5g4,Bg4g3][%mdl 32]} 65. b6 $2 {[%emt 0:00:42]} (65. Re8+ $19 Kf6 66. Rf8+ Kg6 67. Rg8+ Kf7 68. Rc8 Rxf3+ 69. Kh4) 65... Rxf3+ {[%emt 0:00:05]} 66. Kh4 {[%emt 0:00:02]} Kf4 {[%emt 0:00:05][%csl Gg4][%cal Rf3h3] Black mates.} 67. Kh5 {[%emt 0:00:11]} Rh3+ {[%emt 0:00:04]} 68. Kg6 {[%emt 0:00:01]} Rb3 {[%emt 0:00:19]} 69. b7 {[%emt 0:00:07]} g3 {[%emt 0:00:02]} 70. Rf8 {[%emt 0:00:35]} Rxb7 {[%emt 0:00:15]} 71. Rxf5+ {[%emt 0:00:02]} Ke3 {[%emt 0:00:08] Weighted Error Value: White=0.10 (very precise) /Black=0.09 (flawless)} 0-1

[Event "Charlotte Open 2024"]
[Site "Charlotte"]
[Date "2024.01.16"]
[Round "6.6"]
[White "Horobetz, Graham"]
[Black "Kraai, Jesse"]
[Result "0-1"]
[ECO "C07"]
[WhiteElo "2249"]
[BlackElo "2375"]
[Annotator "TA"]
[PlyCount "122"]
[EventDate "2024.01.05"]
[EventType "swiss"]
[EventCountry "USA"]
[SourceTitle "playchess.com"]
[Source "ChessBase"]
[SourceQuality "1"]
[TimeControl "6600+10"]

{[%evp 10,122,17,27,18,5,22,18,21,23,26,5,0,-35,0,0,0,0,0,-17,-14,-17,-9,-6,-6,-9,-12,-13,0,-8,-6,-11,0,0,0,-6,0,0,0,-5,0,2,12,12,27,18,44,16,15,19,22,6,11,5,0,0,0,0,0,0,0,-18,-21,-93,-80,-140,-150,-148,-149,-143,-139,-149,-142,-125,-122,-168,-92,-92,-58,-202,-183,-181,-175,-370,-382,-375,-368,-758,-758,-731,-721,-736,-688,-29944,-11972,-29970,-29971,-29970,-29970,-29969,-29959,-29973,-29971,-29974,-29975,-29976,-29977,-29977,-29978,-29978,-29979,-29979,-29980,-29980,-29981]} 1. e4 {[%emt 0:00:03]} e6 {[%emt 0:00:05]} 2. d4 {[%emt 0:00:07]} d5 {[%emt 0:00:06]} 3. Nd2 {[%emt 0:00:06]} c5 {[%emt 0:00:06]} 4. exd5 {[%emt 0:00:11]} Qxd5 {[%emt 0:00:40]} 5. Ngf3 {[%emt 0:00:08]} cxd4 {[%emt 0:00:06]} 6. Bc4 {[%emt 0:00:06]} Qd7 {[%emt 0:00:06] C07: French Tarrasch: 3...c5, 4 Ngf3 and 4 exd5 Qxd5.} 7. Nb3 {[%emt 0:00:23]} Bb4+ {[%emt 0:02:06]} 8. Bd2 {[%emt 0:00:29]} Bxd2+ {[%emt 0:00:07] The position is equal.} 9. Qxd2 {[%emt 0:00:20][%cal Od2g5]} Nf6 {[%emt 0:00:49] [#]} 10. Ne5 $146 {[%emt 0:04:55][%mdl 64] Deflection} ({Predecessor:} 10. Nbxd4 O-O 11. O-O Qc7 12. Qe2 a6 13. Rad1 b5 14. Bb3 Bb7 15. Ne5 Bd5 16. c4 bxc4 17. Bxc4 {0-1 Shahade,G (2476)-Holt,C (2549) Titled Tuesday intern op 26th Jan blitz 2021 (8)}) 10... Qc7 {[%emt 0:00:27]} 11. Bb5+ {[%emt 0:00:38]} Bd7 {[%emt 0:02:56]} 12. Nxd7 {[%emt 0:01:17]} Nbxd7 {[%emt 0:00:05]} 13. Qxd4 {[%emt 0:04:37]} O-O {[%emt 0:00:57][%cal Oc7c2]} 14. O-O {[%emt 0:02:20]} Rfd8 {[%emt 0:00:53]} 15. Rac1 {[%emt 0:05:18]} Ne5 {[%emt 0:07:09]} 16. Qf4 {[%emt 0:01:29]} Rac8 {[%emt 0:11:03]} 17. Rfd1 {[%emt 0:03:25]} Nd5 {[%emt 0:12:19]} 18. Qg3 {[%emt 0:06:21]} h6 {[%emt 0:05:21]} (18... Nc4 {simplifies} 19. Qxc7 Rxc7 20. Bxc4 Rxc4 21. c3 Rcc8) 19. Rd4 {[%emt 0:05:50]} a6 {[%emt 0:06:36]} 20. Bf1 {[%emt 0:01:41]} Nc6 {[%emt 0:00:40] A dynamic duo of knights.} 21. Qxc7 {[%emt 0:00:54]} Rxc7 {[%emt 0:01:01]} 22. Rdd1 {[%emt 0:00:39]} Rdc8 {[%emt 0:00:50]} 23. c3 {[%emt 0:02:15]} Ne5 {[%emt 0:00:59]} 24. g3 {[%emt 0:13:49]} Nb6 {[%emt 0:02:43]} 25. Rc2 {[%emt 0:03:35]} Na4 {[%emt 0:06:31]} 26. f4 {[%emt 0:01:32]} Ng4 {[%emt 0:03:28] Strongly threatening ...Ne3.} 27. Re2 {[%emt 0:06:10] Against Ne3} Kf8 {[%emt 0:05:31]} 28. h3 {[%emt 0:02:47]} Nf6 {[%emt 0:00:07]} 29. Bg2 {[%emt 0:00:36]} Nd7 {[%emt 0:06:33]} 30. Red2 {[%emt 0:02:59]} Ndc5 {[%emt 0:01:40]} 31. Nxc5 {[%emt 0:01:55]} Nxc5 {[%emt 0:00:09]} 32. c4 {[%emt 0:01:04]} Ke7 {[%emt 0:00:53]} 33. b4 {[%emt 0:06:57]} Na4 {[%emt 0:08:07]} 34. c5 {[%emt 0:03:10]} b6 {[%emt 0:03:37]} 35. cxb6 {[%emt 0:08:35]} Nxb6 {[%emt 0:00:08]} 36. Rd6 {[%emt 0:00:58]} (36. f5 $11) 36... Rc1 $1 $17 {[%emt 0:01:04][%cal Ob6d5]} 37. Bf1 {[%emt 0:00:21]} (37. R6d2 $142) 37... Nd5 {[%emt 0:01:06]} 38. Rxc1 {[%emt 0:02:46]} Rxc1 {[%emt 0:00:07]} 39. Rxa6 {[%emt 0:00:07][%mdl 4096] Endgame [#] KRB-KRN} Ne3 $1 {[%emt 0:00:08] Black is more active.} ({Inferior is} 39... Nxb4 40. Ra7+ Kf6 41. a4 $15) 40. Kf2 {[%emt 0:00:19]} Nxf1 {[%emt 0:00:25] KRN-KR} 41. Ra7+ {[%emt 0:01:03]} Kf6 {[%emt 0:01:19] aiming for ...Nd2.} 42. Rd7 {[%emt 0:00:13] Prevents Nd2} (42. b5 $17) 42... Nh2 {[%emt 0:03:44]} (42... g5 $19 {...Nh2 would be deadly.} 43. b5 Nh2) 43. Rd2 {[%emt 0:00:17]} Rc3 {[%emt 0:00:19] Hoping for ...Nf3.} 44. Rb2 {[%emt 0:04:27] Now White is beyond hope.} (44. b5 $1 $15) 44... Nf3 {[%emt 0:00:35][%cal Bh2f3,Bf3d4,Bd4b3][%mdl 32] And now ...Ke7 would win.} 45. b5 {[%emt 0:02:19]} Nd4 {[%emt 0:00:13] White must now prevent ...Ke7.} 46. a4 $2 {[%emt 0:00:49]} (46. b6 {might work better.}) 46... Rf3+ $19 {[%emt 0:04:10]} 47. Kg2 {[%emt 0:03:12] [#]} Rb3 $1 {[%emt 0:00:35]} 48. Rxb3 {[%emt 0:01:06]} (48. Ra2) 48... Nxb3 {[%emt 0:00:07] KN-KP} 49. Kf3 {[%emt 0:00:49]} Ke7 {[%emt 0:00:07]} 50. g4 {[%emt 0:01:04]} Kd6 {[%emt 0:00:12]} 51. h4 {[%emt 0:00:52]} f5 {[%emt 0:00:40] ( -> ...Kc5)} 52. gxf5 {[%emt 0:00:21]} exf5 {[%emt 0:00:04] Black mates.} 53. Ke2 {[%emt 0:00:25]} Kd5 {[%emt 0:00:10]} 54. Ke3 {[%emt 0:00:31]} Kc4 {[%emt 0:00:56]} 55. h5 {[%emt 0:00:28]} Kd5 {[%emt 0:02:00]} 56. b6 {[%emt 0:00:09]} Kc6 {[%emt 0:01:00]} 57. a5 {[%emt 0:00:11]} Nxa5 {[%emt 0:00:24]} 58. Kd4 {[%emt 0:00:06]} Kd6 {[%emt 0:00:12]} ({Weaker is} 58... Kxb6 59. Ke5 $11) 59. Kc3 {[%emt 0:00:14]} Kc5 {[%emt 0:00:18]} 60. Kd3 {[%emt 0:00:03]} Nb7 {[%emt 0:01:19]} 61. Kc3 {[%emt 0:00:08]} Nd6 {[%emt 0:00:22] Weighted Error Value: White=0.53/Black=0.07 (flawless)} 0-1